fUST/lending_fUST_20250701
["ID","MTS","AMOUNT","RATE_DAILY","PERIOD"]
[368766810,1751353625631,484.4,0.00018588,2]
[368766811,1751353625660,484.4,0.00018862,2]
[368766812,1751353625717,461.55637915,0.00018041,2]
[368766813,1751353626750,776.26,0.00018587,2]
[368766814,1751353627009,776.26,0.00018861,2]
[368766815,1751353629506,460.0,0.0001804,2]
[368766816,1751353629760,221.57,0.00018314,2]
[368766817,1751353636124,-500.0,0.00018949,2]
[368766818,1751353636147,-837.20943635,0.0001895,2]
[368766819,1751353636171,-160.0,0.0001895,2]
[368766820,1751353636193,-160.0,0.0001895,2]
[368766821,1751353636216,-160.0,0.0001895,2]
[368766822,1751353636238,-160.0,0.0001895,2]
[368766823,1751353636260,-160.0,0.0001895,2]
[368766824,1751353636282,-215.01728679,0.0001895,2]
[368766825,1751353636305,-12571.40790328,0.0001895,2]
[368766826,1751353636328,-230.32585361,0.0001895,2]
[368766827,1751353636351,-213.87551669,0.0001895,2]
[368766828,1751353636374,-847.53272281,0.0001895,2]
[368766829,1751353636397,-160.0,0.0001895,2]
[368766830,1751353636421,-204.74557599,0.00018966,2]
[368766831,1751353639218,460.0,0.00018041,2]
[368766832,1751353640359,460.0,0.00018041,2]
[368766833,1751353641041,460.0,0.00018315,2]
[368766834,1751353641288,460.0,0.00018589,2]
[368766835,1751353641904,460.0,0.00018863,2]
[368766836,1751353642886,460.0,0.00018041,2]
[368766837,1751353642916,3551.16111922,0.000189,2]
[368766838,1751353643147,460.0,0.00018315,2]
[368766839,1751353643419,460.0,0.00018589,2]
[368766840,1751353643688,460.0,0.00018863,2]
[368766841,1751353644345,460.0,0.00018041,2]
[368766842,1751353644971,460.0,0.00018039,2]
[368766843,1751353645548,460.0,0.00018039,2]
[368766844,1751353645908,362.24356867,0.00018313,2]
[368766845,1751353650332,-207.4,0.0001902,2]
[368766846,1751353650357,-521.79,0.00019135,2]
[368766847,1751353650383,-1148.07,0.00019135,2]
[368766848,1751353650408,-776.26,0.00019135,2]
[368766849,1751353650432,-460.0,0.00019136,2]
[368766850,1751353650455,-460.0,0.00019136,2]
[368766851,1751353650482,-445.27,0.00019136,2]
[368766852,1751353650509,-801.85,0.00019136,2]
[368766853,1751353650539,-1049.48,0.00019136,2]
[368766854,1751353650565,-920.25,0.00019136,2]
[368766855,1751353650590,-508.21,0.00019136,2]
[368766856,1751353650615,-460.0,0.00019136,2]
[368766857,1751353650641,-679.55,0.00019136,2]
[368766858,1751353650665,-460.0,0.00019136,2]
[368766859,1751353650688,-484.4,0.00019136,2]
[368766860,1751353650713,-460.0,0.00019137,2]
[368766861,1751353650736,-460.0,0.00019137,2]
[368766862,1751353650761,-644.38,0.00019137,2]
[368766863,1751353650788,-460.0,0.00019137,2]
[368766864,1751353650814,-460.0,0.00019137,2]
[368766865,1751353650838,-189.82,0.00019137,2]
[368766866,1751353650862,-460.0,0.00019137,2]
[368766867,1751353650890,-460.0,0.00019137,2]
[368766868,1751353650917,-460.0,0.00019137,2]
[368766869,1751353650942,-460.0,0.00019137,2]
[368766870,1751353650968,-643.33,0.00019137,2]
[368766871,1751353650996,-524.34,0.00019137,2]
[368766872,1751353651022,-1576.23,0.00019137,2]
[368766873,1751353651046,-460.0,0.00019137,2]
[368766874,1751353651069,-460.0,0.00019137,2]
[368766875,1751353651093,-675.29,0.00019137,2]
[368766876,1751353651117,-460.0,0.00019137,2]
[368766877,1751353651141,-460.0,0.00019137,2]
[368766878,1751353651166,-460.0,0.00019137,2]
[368766879,1751353651190,-626.37,0.00019137,2]
[368766880,1751353651214,-524.45,0.00019137,2]
[368766881,1751353651236,-460.0,0.00019137,2]
[368766882,1751353651260,-460.0,0.00019137,2]
[368766883,1751353651284,-460.0,0.00019138,2]
[368766884,1751353651306,-342.97,0.00019138,2]
[368766885,1751353651328,-333.6464,0.00019178,2]
[368766886,1751353652080,-473.52922247,0.00019261,2]
[368766887,1751353652861,460.0,0.0001804,2]
[368766888,1751353653111,460.0,0.00018314,2]
[368766889,1751353653367,460.0,0.00018588,2]
[368766890,1751353653606,460.0,0.00018862,2]
[368766891,1751353658523,460.0,0.00018313,2]
[368766892,1751353660827,879.21,0.00018039,2]
[368766893,1751353661074,879.21,0.00018313,2]
[368766894,1751353661337,879.21,0.00018587,2]
[368766895,1751353661611,879.21,0.00018861,2]
[368766896,1751353661868,879.21,0.00019135,2]
[368766897,1751353661970,544.87,0.00018041,2]
[368766898,1751353662361,544.87,0.00018315,2]
[368766899,1751353662927,460.0,0.00018313,2]
[368766900,1751353662967,544.87,0.00018589,2]
[368766901,1751353663206,460.0,0.00018587,2]
[368766902,1751353663240,544.87,0.00018863,2]
[368766903,1751353663501,544.87,0.00019137,2]
[368766904,1751353664027,333.0,0.0001804,2]
[368766905,1751353666723,460.0,0.00018313,2]
[368766906,1751353674416,213.28869677,0.00018313,2]
[368766907,1751353676324,460.0,0.00018039,2]
[368766908,1751353676693,460.0,0.00018313,2]
[368766909,1751353676834,151.08,0.00018313,2]
[368766910,1751353678922,719.81926265,0.00018039,2]
[368766911,1751353683642,-5.97073735,0.00018039,2]
[368766912,1751353683666,-199.79247995,0.0001804,2]
[368766913,1751353685707,-206.03421299,0.0001804,2]
[368766914,1751353687530,-54.17330706,0.0001804,2]
[368766915,1751353687555,-205.7632173,0.0001804,2]
[368766916,1751353687580,-329.66347564,0.0001804,2]
[368766917,1751353689288,242.41256971,0.0001794,2]
[368766919,1751353754400,1650.37380972,0.00025222,60]
[368766933,1751353837813,-830.75,0.00018039,2]
[368766935,1751353837823,-460.0,0.00018039,2]
[368766937,1751353837832,-537.97,0.00018039,2]
[368766939,1751353837842,-300.0,0.00018039,2]
[368766941,1751353837851,-307.19,0.00018039,2]
[368766943,1751353837860,-460.0,0.00018039,2]
[368766945,1751353837870,-170.33652436,0.0001804,2]
[368766947,1751353837879,-500.0,0.0001804,2]
[368766949,1751353837888,-500.0,0.0001804,2]
[368766951,1751353837899,-461.33754827,0.0001804,2]
[368766953,1751353837908,-460.0,0.0001804,2]
[368766955,1751353837917,-217.64,0.0001804,2]
[368766957,1751353837926,-460.0,0.0001804,2]
[368766959,1751353837935,-460.0,0.0001804,2]
[368766961,1751353837945,-504.07457652,0.0001804,2]
[368766963,1751353837957,-460.0,0.0001804,2]
[368766965,1751353837967,-1324.71,0.0001804,2]
[368766967,1751353837978,-648.17,0.0001804,2]
[368766969,1751353837987,-460.0,0.0001804,2]
[368766971,1751353837997,-201.31,0.0001804,2]
[368766972,1751353838006,-460.0,0.0001804,2]
[368766973,1751353838017,-460.0,0.0001804,2]
[368766974,1751353838027,-460.0,0.0001804,2]
[368766975,1751353838039,-391.98,0.00018041,2]
[368766976,1751353838179,-460.0,0.00018041,2]
[368766977,1751353838188,-500.0,0.00018041,2]
[368766978,1751353838198,-566.44,0.00018041,2]
[368766979,1751353838207,-460.0,0.00018041,2]
[368766980,1751353838216,-1506.24,0.00018041,2]
[368766982,1751353838226,-460.0,0.00018042,2]
[368766984,1751353838235,-725.79,0.00018313,2]
[368766985,1751353838244,-460.0,0.00018313,2]
[368766986,1751353838253,-460.0,0.00018313,2]
[368766987,1751353838263,-830.75,0.00018313,2]
[368766988,1751353838272,-460.0,0.00018313,2]
[368766989,1751353838281,-460.0,0.00018313,2]
[368766990,1751353838290,-460.0,0.00018313,2]
[368766991,1751353838300,-460.0,0.00018313,2]
[368766992,1751353838309,-460.0,0.00018313,2]
[368766993,1751353838318,-460.0,0.00018313,2]
[368766994,1751353838328,-460.0,0.00018313,2]
[368766995,1751353838337,-404.49142551,0.00018313,2]
[368766996,1751353838347,-177.5,0.00018313,2]
[368766997,1751353838356,-537.97,0.00018313,2]
[368766998,1751353838366,-460.0,0.00018313,2]
[368766999,1751353838375,-460.0,0.00018314,2]
[368767000,1751353838384,-460.0,0.00018314,2]
[368767001,1751353838394,-1324.71,0.00018314,2]
[368767002,1751353838403,-648.17,0.00018314,2]
[368767003,1751353838412,-460.0,0.00018314,2]
[368767004,1751353838422,-471.72,0.00018314,2]
[368767005,1751353838431,-460.0,0.00018314,2]
[368767006,1751353838441,-228.57349083,0.00018314,2]
[368767007,1751353838450,-566.44,0.00018315,2]
[368767008,1751353838460,-460.0,0.00018315,2]
[368767009,1751353838469,-1506.24,0.00018315,2]
[368767010,1751353838478,-460.0,0.00018316,2]
[368767011,1751353838488,-725.79,0.00018587,2]
[368767012,1751353838497,-830.75,0.00018587,2]
[368767014,1751353838505,-460.0,0.00018587,2]
[368767015,1751353838514,-460.0,0.00018587,2]
[368767017,1751353838523,-537.97,0.00018587,2]
[368767019,1751353838533,-460.0,0.00018587,2]
[368767021,1751353838543,-460.0,0.00018588,2]
[368767023,1751353838554,-460.0,0.00018588,2]
[368767025,1751353838563,-1324.71,0.00018588,2]
[368767027,1751353838572,-648.17,0.00018588,2]
[368767029,1751353838581,-460.0,0.00018588,2]
[368767031,1751353838590,-460.0,0.00018588,2]
[368767033,1751353838599,-566.44,0.00018589,2]
[368767035,1751353838609,-460.0,0.00018589,2]
[368767037,1751353838618,-1506.24,0.00018589,2]
[368767038,1751353838627,-460.0,0.0001859,2]
[368767039,1751353838637,-725.79,0.00018861,2]
[368767040,1751353838646,-830.75,0.00018861,2]
[368767041,1751353838655,-460.0,0.00018861,2]
[368767042,1751353838664,-460.0,0.00018861,2]
[368767043,1751353838674,-537.97,0.00018861,2]
[368767044,1751353838683,-460.0,0.00018861,2]
[368767045,1751353838692,-460.0,0.00018862,2]
[368767046,1751353838702,-460.0,0.00018862,2]
[368767047,1751353838711,-1324.71,0.00018862,2]
[368767048,1751353838720,-648.17,0.00018862,2]
[368767049,1751353838730,-460.0,0.00018862,2]
[368767050,1751353838739,-460.0,0.00018862,2]
[368767051,1751353838748,-566.44,0.00018863,2]
[368767052,1751353838758,-460.0,0.00018863,2]
[368767053,1751353838768,-1506.24,0.00018863,2]
[368767054,1751353838778,-460.0,0.00018864,2]
[368767055,1751353838788,-2367.44074614,0.000189,2]
[368767056,1751353838797,-160.0,0.00018948,2]
[368767057,1751353838806,-847.53272281,0.00018948,2]
[368767058,1751353838815,-160.0,0.00018948,2]
[368767059,1751353838824,-160.0,0.00018948,2]
[368767060,1751353838834,-160.0,0.00018948,2]
[368767061,1751353838844,-837.20943635,0.00018948,2]
[368767062,1751353838854,-160.0,0.00018948,2]
[368767063,1751353838864,-215.01728679,0.00018948,2]
[368767064,1751353838874,-228.74372877,0.00019035,2]
[368767065,1751353838884,-460.0,0.00019134,2]
[368767066,1751353838894,-460.0,0.00019134,2]
[368767067,1751353838903,-462.01440882,0.00019134,2]
[368767068,1751353838913,-460.0,0.00019134,2]
[368767069,1751353838923,-12571.40790328,0.00019135,2]
[368767070,1751353838933,-213.87551669,0.00019135,2]
[368767071,1751353838943,-230.32585361,0.00019135,2]
[368767072,1751353838954,-725.79,0.00019135,2]
[368767073,1751353838965,-830.75,0.00019135,2]
[368767074,1751353838975,-460.0,0.00019135,2]
[368767075,1751353838985,-460.0,0.00019135,2]
[368767076,1751353838996,-537.97,0.00019135,2]
[368767077,1751353839005,-350.06,0.00019135,2]
[368767078,1751353839014,-460.0,0.00019136,2]
[368767079,1751353839024,-460.0,0.00019136,2]
[368767080,1751353839033,-1324.71,0.00019136,2]
[368767081,1751353839043,-648.17,0.00019136,2]
[368767082,1751353839052,-460.0,0.00019136,2]
[368767083,1751353839061,-460.0,0.00019136,2]
[368767084,1751353839071,-566.44,0.00019137,2]
[368767085,1751353839080,-460.0,0.00019137,2]
[368767086,1751353839089,-1506.24,0.00019137,2]
[368767087,1751353839099,-207.4,0.00019399,2]
[368767088,1751353839108,-5000.0,0.00019399,2]
[368767089,1751353839120,-1148.07,0.00019409,2]
[368767090,1751353839130,-776.26,0.00019409,2]
[368767091,1751353839139,-879.21,0.00019409,2]
[368767092,1751353839149,-725.79,0.00019409,2]
[368767093,1751353839159,-830.75,0.00019409,2]
[368767094,1751353839168,-460.0,0.00019409,2]
[368767095,1751353839178,-460.0,0.00019409,2]
[368767096,1751353839187,-537.97,0.00019409,2]
[368767097,1751353839196,-536.33576114,0.0001941,2]
[368767098,1751353839205,-460.0,0.0001941,2]
[368767099,1751353839214,-484.4,0.0001941,2]
[368767100,1751353839224,-460.0,0.0001941,2]
[368767101,1751353839234,-460.0,0.0001941,2]
[368767102,1751353839243,-1324.71,0.0001941,2]
[368767103,1751353839252,-648.17,0.0001941,2]
[368767104,1751353839263,-460.0,0.0001941,2]
[368767105,1751353839272,-460.0,0.0001941,2]
[368767106,1751353839281,-206.48564191,0.00019411,2]
[368767107,1751353839291,-228.26,0.00019411,2]
[368767108,1751353839301,-460.0,0.00019411,2]
[368767109,1751353839310,-460.0,0.00019411,2]
[368767110,1751353839320,-460.0,0.00019411,2]
[368767111,1751353839329,-626.37,0.00019411,2]
[368767112,1751353839339,-524.45,0.00019411,2]
[368767113,1751353839348,-460.0,0.00019411,2]
[368767114,1751353839358,-460.0,0.00019411,2]
[368767115,1751353839369,-544.87,0.00019411,2]
[368767116,1751353839378,-566.44,0.00019411,2]
[368767117,1751353839388,-460.0,0.00019411,2]
[368767118,1751353839398,-1506.24,0.00019411,2]
[368767119,1751353839407,-485.62165416,0.00019617,2]
[368767120,1751353839416,-500.0,0.00019617,2]
[368767121,1751353839425,-501.85873323,0.00019617,2]
[368767122,1751353839434,-500.0,0.00019617,2]
[368767123,1751353839444,-500.0,0.00019617,2]
[368767124,1751353839453,-420.0,0.00019682,2]
[368767125,1751353839463,-1148.07,0.00019683,2]
[368767126,1751353839473,-776.26,0.00019683,2]
[368767127,1751353839482,-879.21,0.00019683,2]
[368767128,1751353839492,-725.79,0.00019683,2]
[368767129,1751353839501,-830.75,0.00019683,2]
[368767130,1751353839511,-460.0,0.00019683,2]
[368767131,1751353839520,-460.0,0.00019683,2]
[368767132,1751353839529,-537.97,0.00019683,2]
[368767133,1751353839538,-460.0,0.00019684,2]
[368767134,1751353839547,-484.4,0.00019684,2]
[368767135,1751353839557,-460.0,0.00019684,2]
[368767136,1751353839566,-460.0,0.00019684,2]
[368767137,1751353839575,-1324.71,0.00019684,2]
[368767138,1751353839584,-648.17,0.00019684,2]
[368767139,1751353839594,-460.0,0.00019684,2]
[368767140,1751353839603,-460.0,0.00019684,2]
[368767141,1751353839612,-460.0,0.00019685,2]
[368767142,1751353839621,-580.17,0.00019685,2]
[368767143,1751353839630,-460.0,0.00019685,2]
[368767144,1751353839640,-626.37,0.00019685,2]
[368767145,1751353839649,-524.45,0.00019685,2]
[368767146,1751353839658,-460.0,0.00019685,2]
[368767147,1751353839667,-549.14,0.00019685,2]
[368767148,1751353839676,-544.87,0.00019685,2]
[368767149,1751353839686,-566.44,0.00019685,2]
[368767150,1751353839695,-273.00306302,0.00019685,2]
[368767151,1751353839704,-1506.24,0.00019685,2]
[368767152,1751353839714,-500.0,0.00019835,2]
[368767153,1751353839723,-151.0,0.00019835,2]
[368767154,1751353839732,-296.50532217,0.00019835,2]
[368767155,1751353839741,-151.33173274,0.00019835,2]
[368767156,1751353839750,-151.0,0.00019835,2]
[368767157,1751353839760,-151.0,0.00019835,2]
[368767158,1751353839769,-151.0,0.00019835,2]
[368767159,1751353839778,-298.49639593,0.00019837,2]
[368767160,1751353839787,-500.0,0.00019862,2]
[368767161,1751353839797,-151.0,0.00019862,2]
[368767163,1751353839806,-500.0,0.0001989,2]
[368767165,1751353839815,-210.80550975,0.0001989,2]
[368767167,1751353839824,-228.74372872,0.00019899,2]
[368767168,1751353839833,-639.04049215,0.000199,2]
[368767169,1751353839843,-621.0,0.00019917,2]
[368767170,1751353839852,-1148.07,0.00019957,2]
[368767171,1751353839862,-776.26,0.00019957,2]
[368767172,1751353839871,-879.21,0.00019957,2]
[368767173,1751353839880,-725.79,0.00019957,2]
[368767174,1751353839890,-830.75,0.00019957,2]
[368767175,1751353839899,-460.0,0.00019957,2]
[368767176,1751353839908,-460.0,0.00019957,2]
[368767177,1751353839918,-537.97,0.00019957,2]
[368767178,1751353839927,-460.0,0.00019958,2]
[368767180,1751353839938,-484.4,0.00019958,2]
[368767183,1751353839948,-460.0,0.00019958,2]
[368767184,1751353839961,-319.30486398,0.00019958,2]
[368767185,1751353839971,-1324.71,0.00019958,2]
[368767186,1751353839981,-648.17,0.00019958,2]
[368767187,1751353839990,-460.0,0.00019958,2]
[368767188,1751353840000,-460.0,0.00019958,2]
[368767189,1751353840009,-460.0,0.00019959,2]
[368767190,1751353840019,-460.0,0.00019959,2]
[368767191,1751353840029,-626.37,0.00019959,2]
[368767192,1751353840039,-524.45,0.00019959,2]
[368767193,1751353840048,-460.0,0.00019959,2]
[368767194,1751353840057,-544.87,0.00019959,2]
[368767195,1751353840067,-566.44,0.00019959,2]
[368767196,1751353840076,-1506.24,0.00019959,2]
[368767197,1751353840085,-169.28,0.0002,2]
[368767198,1751353840095,-639.04049187,0.00020107,2]
[368767199,1751353840104,-168.0,0.00020114,2]
[368767200,1751353840114,-366.3581911,0.00020164,2]
[368767201,1751353840124,-366.3581911,0.00020164,2]
[368767202,1751353840133,-1000.0,0.00020165,2]
[368767203,1751353840143,-186.869094,0.00020187,2]
[368767204,1751353840152,-1148.07,0.00020231,2]
[368767205,1751353840162,-776.26,0.00020231,2]
[368767206,1751353840172,-879.21,0.00020231,2]
[368767207,1751353840181,-725.79,0.00020231,2]
[368767208,1751353840190,-830.75,0.00020231,2]
[368767209,1751353840200,-460.0,0.00020231,2]
[368767210,1751353840210,-460.0,0.00020231,2]
[368767211,1751353840219,-537.97,0.00020231,2]
[368767212,1751353840228,-460.0,0.00020232,2]
[368767213,1751353840238,-484.4,0.00020232,2]
[368767215,1751353840248,-460.0,0.00020232,2]
[368767217,1751353840257,-1324.71,0.00020232,2]
[368767219,1751353840266,-648.17,0.00020232,2]
[368767221,1751353840275,-460.0,0.00020232,2]
[368767223,1751353840285,-460.0,0.00020232,2]
[368767225,1751353840294,-375.62,0.00020233,2]
[368767227,1751353840304,-460.0,0.00020233,2]
[368767228,1751353840313,-626.37,0.00020233,2]
[368767229,1751353840323,-524.45,0.00020233,2]
[368767230,1751353840333,-171.23,0.00020233,2]
[368767231,1751353840342,-544.87,0.00020233,2]
[368767232,1751353840352,-566.44,0.00020233,2]
[368767233,1751353840361,-1506.24,0.00020233,2]
[368767234,1751353840371,-639.04049187,0.00020314,3]
[368767236,1751353840381,-1148.07,0.00020505,2]
[368767238,1751353840391,-776.26,0.00020505,2]
[368767240,1751353840404,-879.21,0.00020505,2]
[368767242,1751353840416,-725.79,0.00020505,2]
[368767244,1751353840426,-830.75,0.00020505,2]
[368767246,1751353840435,-460.0,0.00020505,2]
[368767248,1751353840444,-460.0,0.00020505,2]
[368767250,1751353840454,-537.97,0.00020505,2]
[368767252,1751353840463,-460.0,0.00020506,2]
[368767254,1751353840472,-484.4,0.00020506,2]
[368767256,1751353840482,-460.0,0.00020506,2]
[368767258,1751353840492,-1324.71,0.00020506,2]
[368767260,1751353840502,-648.17,0.00020506,2]
[368767262,1751353840511,-460.0,0.00020506,2]
[368767264,1751353840521,-460.0,0.00020506,2]
[368767266,1751353840531,-460.0,0.00020507,2]
[368767268,1751353840540,-626.37,0.00020507,2]
[368767270,1751353840549,-524.45,0.00020507,2]
[368767272,1751353840558,-544.87,0.00020507,2]
[368767274,1751353840567,-566.44,0.00020507,2]
[368767276,1751353840576,-1506.24,0.00020507,2]
[368767278,1751353840586,-639.04049187,0.00020521,3]
[368767280,1751353840595,-500.0,0.00020547,14]
[368767282,1751353840605,-2062.87,0.000206,2]
[368767284,1751353840614,-196.95,0.00020671,3]
[368767286,1751353840624,-590.85,0.00020671,3]
[368767288,1751353840633,-346.406,0.00020681,2]
[368767290,1751353840643,-1500.0,0.00020713,2]
[368767292,1751353840652,-639.04049187,0.00020728,3]
[368767294,1751353840662,-228.74372872,0.00020762,2]
[368767296,1751353840672,-215.0738,0.00020768,2]
[368767297,1751353840682,-966.0,0.00020777,2]
[368767299,1751353840693,-2151.0,0.00020777,2]
[368767301,1751353840705,-646.0,0.00020777,2]
[368767304,1751353840714,-1148.07,0.00020779,2]
[368767306,1751353840725,-776.26,0.00020779,2]
[368767308,1751353840734,-879.21,0.00020779,2]
[368767310,1751353840743,-725.79,0.00020779,2]
[368767312,1751353840753,-830.75,0.00020779,2]
[368767314,1751353840762,-460.0,0.00020779,2]
[368767316,1751353840771,-460.0,0.00020779,2]
[368767318,1751353840781,-537.97,0.00020779,2]
[368767320,1751353840790,-460.0,0.0002078,2]
[368767322,1751353840799,-484.4,0.0002078,2]
[368767324,1751353840809,-460.0,0.0002078,2]
[368767326,1751353840818,-1324.71,0.0002078,2]
[368767328,1751353840827,-648.17,0.0002078,2]
[368767330,1751353840837,-460.0,0.0002078,2]
[368767332,1751353840846,-460.0,0.0002078,2]
[368767334,1751353840855,-460.0,0.00020781,2]
[368767336,1751353840864,-626.37,0.00020781,2]
[368767337,1751353840873,-524.45,0.00020781,2]
[368767338,1751353840882,-544.87,0.00020781,2]
[368767339,1751353840892,-566.44,0.00020781,2]
[368767340,1751353840997,-1506.24,0.00020781,2]
[368767341,1751353841007,-406.0,0.00020787,2]
[368767342,1751353841017,-424.076,0.00020787,2]
[368767343,1751353841027,-639.04049187,0.00020934,4]
[368767344,1751353841036,-503.08509503,0.0002099,2]
[368767345,1751353841045,-576.0,0.00021,2]
[368767346,1751353841055,-1148.07,0.00021053,2]
[368767347,1751353841065,-776.26,0.00021053,2]
[368767348,1751353841074,-879.21,0.00021053,2]
[368767349,1751353841084,-725.79,0.00021053,2]
[368767350,1751353841094,-830.75,0.00021053,2]
[368767351,1751353841103,-460.0,0.00021053,2]
[368767352,1751353841113,-460.0,0.00021053,2]
[368767353,1751353841123,-537.97,0.00021053,2]
[368767354,1751353841132,-280.27200773,0.00021054,2]
[368767355,1751353841142,-484.4,0.00021054,2]
[368767356,1751353841152,-460.0,0.00021054,2]
[368767357,1751353841162,-1324.71,0.00021054,2]
[368767358,1751353841172,-648.17,0.00021054,2]
[368767359,1751353841181,-460.0,0.00021054,2]
[368767360,1751353841191,-460.0,0.00021054,2]
[368767361,1751353841201,-502.4851468,0.00021055,2]
[368767362,1751353841210,-626.37,0.00021055,2]
[368767363,1751353841219,-524.45,0.00021055,2]
[368767364,1751353841230,-544.87,0.00021055,2]
[368767365,1751353841239,-566.44,0.00021055,2]
[368767366,1751353841249,-1506.24,0.00021055,2]
[368767367,1751353841259,-365.9903038,0.00021123,2]
[368767368,1751353841269,-639.04049187,0.00021141,4]
[368767369,1751353841279,-2000.0,0.00021261,2]
[368767370,1751353841289,-1148.07,0.00021327,2]
[368767371,1751353841299,-776.26,0.00021327,2]
[368767372,1751353841309,-879.21,0.00021327,2]
[368767373,1751353841319,-725.79,0.00021327,2]
[368767374,1751353841329,-830.75,0.00021327,2]
[368767375,1751353841338,-460.0,0.00021327,2]
[368767376,1751353841348,-460.0,0.00021327,2]
[368767377,1751353841357,-537.97,0.00021327,2]
[368767378,1751353841367,-484.4,0.00021328,2]
[368767379,1751353841376,-460.0,0.00021328,2]
[368767380,1751353841386,-1324.71,0.00021328,2]
[368767381,1751353841395,-648.17,0.00021328,2]
[368767382,1751353841405,-460.0,0.00021328,2]
[368767383,1751353841414,-460.0,0.00021328,2]
[368767384,1751353841423,-626.37,0.00021329,2]
[368767385,1751353841432,-524.45,0.00021329,2]
[368767386,1751353841442,-260.40660494,0.00021329,2]
[368767387,1751353841458,-284.46339506,0.00021329,2]
[368767388,1751353841467,-566.44,0.00021329,2]
[368767389,1751353841476,-1213.60219854,0.00021329,2]
[368767390,1751353841488,-292.63780146,0.00021329,2]
[368767391,1751353841497,-639.04049187,0.00021348,5]
[368767392,1751353841507,-151.0,0.000214,4]
[368767393,1751353841516,-587.0,0.00021474,2]
[368767394,1751353841525,-758.14389481,0.0002149,2]
[368767395,1751353841535,-639.04049187,0.00021555,5]
[368767396,1751353841544,-1139.344505,0.0002156,4]
[368767397,1751353841552,-841.802415,0.00021601,2]
[368767398,1751353841564,-306.267585,0.00021601,2]
[368767399,1751353841574,-155.154915,0.00021601,2]
[368767400,1751353841586,-621.105085,0.00021601,2]
[368767401,1751353841595,-102.39591719,0.00021601,2]
[368767402,1751353841607,-776.81408281,0.00021601,2]
[368767403,1751353841616,-574.56318927,0.00021601,2]
[368767404,1751353841628,-151.22681073,0.00021601,2]
[368767405,1751353841637,-830.75,0.00021601,2]
[368767406,1751353841646,-460.0,0.00021601,2]
[368767407,1751353841656,-460.0,0.00021601,2]
[368767408,1751353841666,-537.97,0.00021601,2]
[368767409,1751353841676,-484.4,0.00021602,2]
[368767410,1751353841685,-460.0,0.00021602,2]
[368767411,1751353841694,-1324.71,0.00021602,2]
[368767412,1751353841703,-648.17,0.00021602,2]
[368767413,1751353841713,-460.0,0.00021602,2]
[368767414,1751353841722,-460.0,0.00021602,2]
[368767415,1751353841731,-242.48377779,0.00021603,2]
[368767416,1751353841743,-383.88622221,0.00021603,2]
[368767417,1751353841754,-524.45,0.00021603,2]
[368767418,1751353841763,-544.87,0.00021603,2]
[368767419,1751353841772,-566.44,0.00021603,2]
[368767420,1751353841782,-1506.24,0.00021603,2]